bitfinex/quotes_ETHUSD_20240715
["timestamp","ask_amount","ask_price","bid_price","bid_amount"]
[1721051280623,5.31603,3363.0,3362.4,3.0]
[1721051280823,2.484,3363.6,3362.9,2.97362]
[1721051281019,2.97313,3363.5,3362.6,2.97383]
[1721051281369,2.97313,3363.5,3362.7,3.0]
[1721051281370,2.97319,3363.4,3362.7,3.0]
[1721051281530,2.484,3363.6,3362.8,2.97371]
[1721051281714,2.46457084,3364.1,3362.9,5.97355]
[1721051281911,2.97272,3364.0,3363.2,2.97335]
[1721051282149,2.4128,3364.1,3362.9,5.97359]
[1721051282150,2.97283,3363.8,3362.9,3.0]
[1721051282323,0.07432563,3364.0,3362.9,3.0]
[1721051282530,2.97327,3363.3,3362.6,3.0]
[1721051282768,2.97327,3363.3,3362.6,5.97386]
[1721051282969,2.97324,3363.4,3362.6,3.0]
[1721051283256,5.40984,3363.1,3362.6,3.0]
[1721051283415,2.97356,3363.0,3362.3,3.0]
[1721051283614,2.97342,3363.2,3362.3,5.97412]
[1721051283849,2.286,3363.5,3362.3,5.97412]
[1721051283850,5.25912,3363.5,3362.4,2.97405]
[1721051284069,2.97293,3363.7,3362.8,2.9737]
[1721051284264,2.97293,3363.7,3362.9,3.0]
[1721051284640,2.973,3363.6,3362.9,5.97362]
[1721051285464,2.97322,3363.4,3362.9,3.0]
[1721051285671,2.97322,3363.4,3361.1,2.97518]
[1721051285672,2.97344,3363.1,3362.7,3.0]
[1721051285964,2.97332,3363.3,3362.5,5.97395]
[1721051286165,2.97327,3363.3,3362.5,3.0]
[1721051286353,2.97343,3363.2,3362.5,3.0]
[1721051286566,2.97343,3363.2,3361.6,2.3526]
[1721051286567,3.04782745,3363.1,3361.6,2.9747]
[1721051286872,5.9479,3362.6,3361.6,2.9747]
[1721051287170,2.97395,3362.6,3361.8,2.97459]
[1721051287692,2.97395,3362.6,3361.9,2.9745]
[1721051288201,2.286,3363.2,3362.1,2.97432]
[1721051288675,2.97315,3363.5,3362.6,2.97382]
[1721051288848,2.97306,3363.6,3362.8,2.9737]
[1721051289055,2.97284,3363.8,3362.9,5.97361]
[1721051289572,2.97293,3363.7,3362.9,5.97361]
[1721051289868,2.97284,3363.8,3363.0,2.97352]
[1721051290056,2.97291,3363.7,3363.1,3.0]
[1721051290259,2.97291,3363.7,3363.0,2.97352]
[1721051290451,2.97274,3363.9,3363.1,3.0]
[1721051290645,2.97257,3364.1,3363.2,2.97329]
[1721051290847,2.97257,3364.1,3363.3,3.0]
[1721051291047,2.97275,3363.9,3363.3,3.0]
[1721051291254,3.56326871,3364.1,3363.3,2.97326]
[1721051291255,2.97267,3364.0,3363.3,2.97326]
[1721051291452,2.97257,3364.1,3363.4,3.0]
[1721051291660,2.97265,3364.0,3363.4,3.0]
[1721051291852,2.97274,3363.9,3363.1,3.0]
[1721051292076,2.97274,3363.9,3363.1,5.97341]
[1721051292555,2.97274,3363.9,3363.2,2.97335]
[1721051292750,2.97282,3363.8,3363.3,3.0]
[1721051292945,2.97282,3363.8,3363.1,3.0]
[1721051293168,2.97308,3363.6,3363.1,3.0]
[1721051293476,2.97308,3363.6,3362.9,3.0]
[1721051293677,2.97309,3363.5,3362.9,3.0]
[1721051293879,2.97343,3363.2,3362.3,2.97413]
[1721051294066,0.07433409,3363.5,3362.4,3.0]
[1721051294067,2.97326,3363.4,3362.4,3.0]
[1721051294269,2.97355,3363.0,3362.4,3.0]
[1721051294471,2.97344,3363.1,3361.5,2.4569]
[1721051294472,2.97388,3362.7,3361.5,2.4569]
[1721051294670,2.97405,3362.5,3361.5,2.4569]
[1721051294873,2.97405,3362.5,3361.7,2.97464]
[1721051295078,2.97431,3362.2,3361.3,2.97495]
[1721051295380,2.97406,3362.4,3361.2,2.97505]
[1721051295381,2.97421,3362.3,3361.5,2.97486]
[1721051295579,2.97424,3362.2,3361.5,2.97486]
[1721051296689,2.97424,3362.2,3361.6,3.0]
[1721051297053,2.2926,3363.1,3361.9,2.9745]
[1721051297255,2.97388,3362.6,3362.0,3.0]
[1721051297454,2.97399,3362.5,3362.0,3.0]
[1721051297649,2.97421,3362.3,3361.8,3.0]
[1721051297886,2.97421,3362.3,3361.3,2.97501]
[1721051297887,2.97421,3362.3,3361.6,5.97477]
[1721051298084,2.97421,3362.3,3361.6,3.0]
[1721051298387,2.97421,3362.3,3361.5,3.0]
[1721051298973,2.97435,3362.1,3361.5,3.0]
[1721051302762,0.07436345,3362.0,3361.2,3.0]
[1721051302967,2.97435,3362.1,3361.2,3.0]
[1721051302968,0.525265,3362.1,3361.2,3.0]
[1721051303163,0.525265,3362.1,3360.8,2.469]
[1721051303164,2.97465,3361.8,3361.1,5.97517]
[1721051303375,2.97465,3361.8,3361.1,2.97517]
[1721051303572,2.97475,3361.7,3361.2,3.0]
[1721051303770,2.97475,3361.7,3361.0,5.97529]
[1721051304506,2.97475,3361.7,3360.6,2.97563]
[1721051304507,2.97504,3361.3,3360.6,2.97563]
[1721051304658,3.63197371,3361.6,3360.2,2.469]
[1721051304659,2.97485,3361.6,3360.8,2.97541]
[1721051304862,0.6219771,3361.7,3361.0,2.9753]
[1721051305175,0.6219771,3361.7,3360.8,2.97541]
[1721051305176,3.5966671,3361.7,3361.1,2.9752]
[1721051305491,3.5966671,3361.7,3360.9,2.97533]
[1721051305659,0.6219771,3361.7,3361.0,2.97528]
[1721051305863,0.6219771,3361.7,3361.1,3.0]
[1721051306067,3.5965771,3361.8,3361.1,3.0]
[1721051306507,3.5965771,3361.8,3361.1,5.97521]
[1721051308086,0.6219771,3361.7,3361.1,5.97521]
[1721051308283,3.5965771,3361.8,3361.1,5.97521]
[1721051308698,0.6219771,3361.9,3361.2,2.97511]
[1721051308970,0.6219771,3362.3,3361.4,2.97495]
[1721051309176,3.5960671,3362.4,3361.5,3.0]
[1721051309365,0.6219771,3362.3,3361.5,3.0]
[1721051309672,0.6219771,3362.1,3361.5,3.0]
[1721051309869,3.5963171,3362.1,3361.5,3.0]
[1721051310183,3.5963171,3362.1,3361.4,2.97494]
[1721051310516,0.62215831,3362.0,3361.5,3.0]
[1721051310725,0.62215831,3361.8,3361.1,2.97521]
[1721051310886,0.62215831,3361.8,3361.0,2.97528]
[1721051310887,0.62215831,3361.7,3361.2,5.97507]
[1721051311072,0.93323747,3361.8,3361.2,5.97507]
[1721051311073,0.62215831,3361.8,3361.2,5.97507]
[1721051311275,3.59670831,3361.9,3361.2,5.97507]
[1721051311641,0.62215831,3361.8,3361.2,5.97507]
[1721051311916,0.62215831,3361.7,3361.2,5.97507]
[1721051312307,0.62215831,3361.8,3361.2,5.97507]
[1721051312674,0.62215831,3361.8,3361.4,2.97492]
[1721051312973,3.59657831,3362.0,3361.4,2.97492]
[1721051313169,0.62215831,3361.9,3361.4,2.97492]
[1721051313373,0.62192375,3362.2,3361.7,2.97467]
[1721051313617,0.62192375,3362.2,3361.4,2.97492]
[1721051313618,3.59608375,3362.3,3361.6,2.97477]
[1721051313823,0.62192375,3362.1,3361.2,5.97507]
[1721051313979,0.93288563,3362.3,3361.9,2.9745]
[1721051313980,0.62192375,3362.3,3361.9,2.9745]
[1721051314727,0.62192375,3362.4,3361.9,2.9745]
[1721051315113,0.62192375,3362.3,3361.9,2.9745]
[1721051315313,0.62192375,3362.3,3361.7,2.97462]
[1721051315523,0.62192375,3362.3,3361.8,3.0]
[1721051315830,1.49658044,3362.3,3361.8,3.0]
[1721051315987,1.49658044,3362.3,3361.7,3.0]
[1721051316184,2.97435,3362.1,3361.4,3.0]
[1721051316390,2.97435,3362.1,3361.4,5.97494]
[1721051316693,0.62192375,3362.0,3361.4,5.97494]
[1721051317277,0.93288563,3362.2,3361.4,5.97494]
[1721051317278,0.62192375,3362.1,3361.5,2.97486]
[1721051317483,0.62192375,3362.0,3361.6,3.0]
[1721051318736,0.62192375,3362.1,3361.6,3.0]
[1721051319316,0.62192375,3362.0,3361.6,3.0]
[1721051319678,0.62192375,3362.1,3361.6,3.0]
[1721051319888,3.90712563,3362.2,3361.6,3.0]
[1721051319889,0.62192375,3362.0,3361.6,3.0]
[1721051320092,0.62192375,3362.1,3361.6,3.0]
[1721051320299,3.90712563,3362.2,3361.3,2.97501]
[1721051320300,1.19921344,3362.0,3361.4,3.0]
[1721051320475,0.62192375,3362.0,3361.4,3.0]
[1721051320818,0.62192375,3362.0,3361.6,2.97476]
[1721051320979,0.62192375,3362.1,3361.7,3.0]
[1721051321677,0.62192375,3362.0,3361.7,3.0]
[1721051321933,0.62192375,3362.0,3361.5,5.97485]
[1721051322512,0.62192116,3362.0,3361.5,5.97485]
[1721051322988,0.62192116,3362.0,3361.5,3.0]
[1721051323189,0.62192116,3362.0,3361.5,5.97486]
[1721051323190,0.62192116,3361.9,3361.5,5.97486]
[1721051323591,4.21808232,3362.2,3361.6,2.97477]
[1721051323592,0.62192116,3362.1,3361.6,2.97477]
[1721051323808,0.62192116,3362.2,3361.8,2.97455]
[1721051324119,0.62192116,3362.3,3361.8,2.97455]
[1721051324319,0.62192116,3362.1,3361.5,5.9748]
[1721051324697,0.62192116,3362.1,3361.6,2.97475]
[1721051324887,0.62192116,3362.1,3361.7,3.0]
[1721051325088,0.62192116,3362.2,3361.7,3.0]
[1721051325401,0.62192116,3362.2,3361.8,2.97455]
[1721051325602,0.62192116,3362.4,3362.1,5.94866]
[1721051325798,1.24384232,3362.7,3362.5,2.97397]
[1721051325799,0.62192116,3362.7,3362.5,2.97397]
[1721051326012,0.62192116,3362.7,3361.7,5.97461]
[1721051326013,0.62192116,3363.2,3363.0,2.97352]
[1721051326324,0.62192116,3363.2,3362.6,3.0]
[1721051326325,0.62192116,3363.7,3363.2,2.9733]
[1721051326821,0.62192116,3363.8,3363.2,2.9733]
[1721051327118,0.62192116,3363.7,3362.9,2.9736]
[1721051327322,0.62192116,3363.5,3363.0,3.0]
[1721051327822,3.90589174,3363.6,3363.0,5.97353]
[1721051327823,0.62192116,3363.6,3363.0,5.97353]
[1721051328030,4.21658232,3363.9,3363.0,5.97353]
[1721051328031,0.62192116,3363.7,3363.2,2.97329]
[1721051328212,0.93288174,3363.9,3363.2,2.97329]
[1721051328213,0.62192116,3363.6,3363.2,2.97329]
[1721051328417,0.62192116,3363.6,3363.0,5.97353]
[1721051328604,0.62192116,3363.5,3363.1,2.97344]
[1721051328938,0.93288174,3363.7,3363.2,2.97334]
[1721051328939,0.62192116,3363.6,3363.2,2.97334]
[1721051329104,2.97265,3364.0,3363.3,5.97326]
[1721051329105,0.62155525,3363.8,3363.3,5.97326]
[1721051329828,0.62155525,3363.7,3363.3,3.0]
[1721051330042,0.62155525,3363.7,3363.2,5.97335]
[1721051330614,0.62155525,3363.8,3363.2,5.97335]
[1721051331122,0.62155525,3363.8,3363.3,2.97326]
[1721051331324,0.62155525,3363.9,3363.3,2.97326]
[1721051331491,0.62155525,3363.8,3363.3,2.97326]
[1721051331897,0.62155525,3363.8,3363.2,3.0]
[1721051332100,4.49557596,3363.8,3363.2,3.0]
[1721051332298,4.49557596,3363.8,3362.4,2.97403]
[1721051332299,0.62155525,3363.4,3362.4,2.97403]
[1721051332536,0.62155525,3363.3,3362.6,2.97388]
[1721051332702,0.62155525,3363.3,3362.7,3.0]
[1721051332703,2.4007,3363.2,3362.7,3.0]
[1721051332895,0.62155525,3363.0,3362.1,2.97425]
[1721051333095,0.62155525,3362.8,3362.1,2.97425]
[1721051333300,0.62155525,3362.8,3361.5,2.3496]
[1721051333301,0.62155525,3362.6,3362.0,2.97441]
[1721051333493,0.62155525,3362.5,3362.0,2.97441]
[1721051334240,0.93233288,3362.6,3361.8,2.97459]
[1721051334241,0.62155525,3362.4,3361.8,2.97459]
[1721051334429,0.62155525,3362.2,3360.5,2.97566]
[1721051334605,3.03765525,3362.3,3361.5,2.97479]
[1721051334806,3.03765525,3362.3,3360.6,0.38254846]
[1721051334807,0.62155525,3362.3,3361.8,5.94904]
[1721051335004,0.93233288,3362.5,3361.8,5.94904]
[1721051335005,0.62155525,3362.5,3361.8,5.94904]
[1721051335207,0.62154361,3362.5,3362.1,2.97431]
[1721051335425,0.62154361,3362.7,3362.1,2.97431]
[1721051335628,0.62154361,3362.8,3362.1,2.97431]
[1721051336110,0.62154361,3362.7,3362.1,2.97431]
[1721051336636,0.62154361,3362.7,3361.9,2.97449]
[1721051336637,0.62154361,3362.6,3361.9,2.97449]
[1721051336843,3.59551361,3362.5,3362.0,3.0]
[1721051337013,0.62154361,3362.3,3361.8,3.0]
[1721051337208,0.62154361,3362.3,3361.8,5.97459]
[1721051337433,0.93231542,3362.4,3361.8,3.0]
[1721051337434,0.62154361,3362.2,3361.8,3.0]
[1721051338040,0.62154361,3362.2,3361.3,2.975]
[1721051338041,3.59593361,3362.1,3361.3,2.975]
[1721051338213,1.80683305,3362.2,3360.7,5.24008]
[1721051338214,0.62154361,3362.0,3361.7,2.97468]
[1721051338410,0.62200824,3362.1,3361.7,2.97468]
[1721051338945,2.97408,3362.4,3361.0,2.97522]
[1721051338946,0.62200824,3362.0,3361.6,2.97477]
[1721051339448,0.62200824,3361.9,3361.6,2.97477]
[1721051339754,0.62200824,3361.9,3361.3,3.0]
[1721051339937,0.62200824,3361.9,3361.1,2.97514]
[1721051339938,0.62200824,3361.8,3361.1,2.97514]
[1721051340131,0.62200824,3361.8,3361.2,2.97512]
[1721051340450,0.62200824,3361.8,3360.7,5.24008]
[1721051340451,0.62200824,3362.0,3361.6,2.97469]
[1721051340646,1.24401649,3362.3,3361.7,2.97462]
[1721051340647,0.62200824,3362.2,3361.7,2.97462]
[1721051340951,0.93301237,3362.3,3360.7,5.24008]
[1721051340952,0.62221509,3362.3,3361.9,2.97449]
[1721051341152,0.62221509,3362.4,3361.9,2.97449]
[1721051341308,0.62221509,3362.4,3362.1,2.97427]
[1721051341629,0.93332263,3362.5,3361.9,2.97448]
[1721051341630,0.62221509,3362.5,3361.9,2.97448]
[1721051341825,0.62221509,3362.4,3361.9,2.97448]
[1721051342039,0.62221509,3362.4,3362.1,2.97431]
[1721051342364,0.62221509,3362.7,3362.3,2.97415]
[1721051342507,0.62221509,3362.8,3362.2,2.97418]
[1721051342707,0.62221509,3362.6,3362.2,2.97418]
[1721051343023,0.62221509,3362.5,3362.2,2.97418]
[1721051343575,0.62221509,3362.6,3362.0,5.97441]
[1721051343750,0.62221509,3362.5,3362.0,5.97441]
[1721051344067,0.62221509,3362.5,3362.2,2.97418]
[1721051344277,0.62221509,3362.7,3362.3,2.97415]
[1721051344981,0.62221509,3362.7,3362.0,3.0]
[1721051345193,0.62221509,3362.9,3362.4,2.97399]
[1721051345384,0.62221509,3363.3,3362.9,2.97362]
[1721051345667,0.62221509,3363.5,3363.1,2.97338]
[1721051345839,0.62221509,3363.6,3363.1,2.97338]
[1721051346028,0.62221509,3363.6,3363.0,2.9735]
[1721051346029,0.62221509,3363.4,3363.0,2.9735]
[1721051346234,0.62221509,3363.4,3362.9,2.97362]
[1721051346235,0.62221509,3363.3,3362.9,2.97362]
[1721051346426,0.62221509,3363.2,3363.0,3.0]
[1721051346831,0.62186715,3363.2,3362.9,3.0]
[1721051347061,0.93280073,3363.4,3362.9,5.97358]
[1721051347062,0.62186715,3363.4,3362.9,5.97358]
[1721051347380,0.62186715,3363.6,3363.2,2.97335]
[1721051347548,0.62186715,3363.7,3363.3,3.0]
[1721051347752,0.62186715,3363.9,3363.4,2.97315]
[1721051347951,0.62186715,3364.0,3363.4,2.97315]
[1721051348298,0.62186715,3364.1,3363.6,2.97293]
[1721051348436,0.62186715,3364.3,3363.7,3.0]
[1721051348635,0.62186715,3364.3,3363.9,2.97267]
[1721051348837,0.62186715,3364.4,3363.9,2.97267]
[1721051349439,0.62186715,3364.4,3363.8,2.97274]
[1721051349440,0.62186715,3364.4,3364.0,2.97263]
[1721051349638,0.62186715,3364.8,3364.0,2.97263]
[1721051349837,4.08385822,3364.8,3364.0,2.97263]
[1721051350144,3.59307598,3364.7,3364.1,3.0]
[1721051350332,3.59307598,3364.7,3363.9,5.97272]
[1721051350539,0.62098598,3364.6,3364.0,2.97261]
[1721051350779,0.62098598,3364.7,3364.1,3.0]
[1721051350969,0.62098598,3364.6,3364.1,3.0]
[1721051351152,0.62098598,3364.7,3364.1,3.0]
[1721051351357,3.59302598,3364.7,3364.1,3.0]
[1721051351577,4.81576249,3364.7,3364.1,3.0]
[1721051352190,0.62098598,3364.6,3364.1,3.0]
[1721051352500,3.59310598,3364.6,3364.1,3.0]
[1721051352702,0.62098598,3364.5,3363.9,5.97273]
[1721051353201,3.59321598,3364.5,3363.9,3.0]
[1721051353516,0.94626957,3364.4,3362.8,2.2643]
[1721051353659,2.97283,3363.8,3362.8,2.97365]
[1721051353866,0.07432834,3363.7,3362.9,2.97362]
[1721051354046,3.59322231,3363.8,3362.9,2.97362]
[1721051354244,2.97283,3363.8,3362.9,2.97362]
[1721051354443,3.94940708,3363.8,3362.9,5.94718]
[1721051354645,0.69472058,3363.7,3362.9,2.97356]
[1721051354873,3.04739001,3363.6,3362.1,2.97426]
[1721051355083,2.9731,3363.5,3362.5,2.97395]
[1721051355302,2.97336,3363.2,3362.4,2.97406]
[1721051355647,5.39141179,3363.1,3362.2,2.97419]
[1721051355874,2.97356,3363.0,3362.2,2.97419]
[1721051356084,3.04797664,3362.9,3362.2,2.97419]
[1721051356397,3.04797664,3362.9,3362.0,2.97441]
[1721051356398,2.97363,3362.9,3362.0,2.97435]
[1721051356548,2.97363,3362.9,3362.3,2.97415]
[1721051357099,3.96522168,3362.9,3362.1,2.97427]
[1721051357248,4.58561399,3362.9,3362.2,2.97417]
[1721051357456,3.59402231,3362.9,3362.2,2.97417]
[1721051357771,0.62039231,3363.0,3362.7,2.97379]
[1721051358074,1.55179473,3363.5,3361.8,2.97458]
[1721051358075,0.62039231,3363.5,3361.8,3.469]
[1721051358274,0.62039231,3363.3,3362.6,2.97383]
[1721051358458,0.62039231,3363.4,3362.7,3.0]
[1721051358663,0.62039231,3363.4,3362.8,2.9737]
[1721051359091,3.59349231,3363.5,3362.8,2.9737]
[1721051359303,0.62039231,3363.5,3362.8,2.9737]
[1721051359513,3.59340231,3363.6,3362.9,2.97362]
[1721051359792,0.62039231,3363.4,3362.8,2.9737]
[1721051359954,2.97309,3363.5,3362.8,2.9737]
[1721051359955,3.59348231,3363.5,3362.8,2.9737]
[1721051360158,0.62039231,3363.4,3362.8,2.9737]
[1721051360708,2.373,3363.7,3363.1,2.97342]
[1721051360995,0.62039231,3363.9,3363.2,5.97332]
[1721051361198,3.66598463,3364.2,3363.2,5.97332]
[1721051361199,2.4252,3364.2,3363.2,2.97332]
[1721051361353,3.41729308,3364.2,3363.4,2.97317]
[1721051361553,3.41729308,3364.2,3363.3,3.0]
[1721051361554,3.59296231,3364.1,3363.5,3.0]
[1721051361754,4.03768539,3364.2,3363.5,2.97309]
[1721051362073,0.62039231,3364.4,3363.3,3.0]
[1721051362300,0.62039231,3364.6,3363.7,2.97285]
[1721051362450,0.62039231,3364.5,3363.8,5.9728]
[1721051362655,0.62039231,3364.4,3363.9,2.97273]
[1721051362854,0.62039231,3364.5,3363.9,2.97273]
[1721051363163,3.59269231,3364.4,3363.8,3.0]
[1721051363518,3.59269231,3364.4,3363.7,3.0]
[1721051363519,0.62039231,3364.3,3363.7,3.0]
[1721051363670,3.90288847,3364.4,3363.7,3.0]
[1721051363671,0.62039231,3364.2,3363.7,3.0]
[1721051363856,0.62039231,3364.3,3363.7,3.0]
[1721051364571,3.59278231,3364.3,3363.7,3.0]
[1721051364790,0.62039231,3364.2,3363.7,3.0]
[1721051365295,0.62039231,3364.2,3363.5,3.0]
[1721051365451,0.07431644,3364.1,3363.5,3.0]
[1721051365823,2.973,3363.6,3362.7,2.97379]
[1721051365970,2.97314,3363.5,3362.7,2.97379]
[1721051366330,0.62039231,3363.7,3362.4,2.97399]
[1721051366474,2.87399231,3364.0,3363.2,2.9733]
[1721051366674,0.62039231,3363.8,3363.0,2.97352]
[1721051367195,3.59323231,3363.8,3363.1,3.0]
[1721051367694,3.59332231,3363.7,3363.1,3.0]
[1721051367910,0.62039231,3363.6,3362.9,3.0]
[1721051368414,3.59332231,3363.7,3363.0,2.97353]
[1721051368615,0.62039231,3363.6,3363.1,3.0]
[1721051368894,1.24078463,3363.9,3363.1,3.0]
[1721051368895,3.59323231,3363.8,3363.1,3.0]
[1721051369107,0.62039231,3363.6,3363.1,3.0]
[1721051369580,0.62039231,3363.7,3363.3,2.97325]
[1721051369754,0.62039231,3363.7,3363.1,5.97338]
[1721051369962,0.62039231,3363.8,3363.1,5.97338]
[1721051370162,0.62039231,3363.8,3363.5,2.97306]
[1721051370360,0.62039231,3363.8,3363.3,2.9732]
[1721051370557,0.93058847,3363.9,3363.4,2.97317]
[1721051370558,0.62039231,3363.9,3363.4,2.97317]
[1721051370860,0.62039231,3364.2,3364.0,2.97262]
[1721051371062,0.93058847,3364.3,3364.0,2.97262]
[1721051371063,0.62039231,3364.3,3364.0,2.97262]
[1721051371484,0.62143277,3364.3,3364.0,2.97262]
[1721051371812,0.62143277,3364.3,3363.8,2.97282]
[1721051372017,0.62143277,3364.3,3363.9,3.0]
[1721051372159,0.62143277,3364.2,3363.9,3.0]
[1721051372617,0.62143277,3364.0,3363.2,2.97333]
[1721051372757,0.62144972,3363.8,3363.3,3.0]
[1721051372964,2.97309,3363.5,3362.7,7.28]
[1721051373175,2.97309,3363.5,3362.7,2.97379]
[1721051373176,0.62144972,3363.4,3362.7,2.97379]
[1721051373373,0.62144972,3363.5,3362.8,2.97368]
[1721051373653,3.00224972,3363.8,3363.0,2.97346]
[1721051373910,0.62144972,3363.5,3362.8,2.97365]
[1721051374229,3.90513915,3363.7,3363.0,2.97347]
[1721051374230,0.62144972,3363.4,3363.0,2.97347]
[1721051374399,0.62144972,3363.6,3363.1,3.0]
[1721051374556,3.59437972,3363.7,3363.1,3.0]
[1721051374753,0.62144972,3363.7,3363.1,3.0]
[1721051374956,0.62144972,3363.4,3362.7,2.97379]
[1721051375222,0.62144972,3363.3,3362.8,3.0]
[1721051375554,0.93214915,3363.5,3362.8,3.0]
[1721051375555,0.62144972,3363.4,3362.8,5.97371]
[1721051375702,0.62144972,3363.4,3362.8,3.0]
[1721051375903,0.62144972,3363.4,3361.5,2.77174846]
[1721051375904,0.62144972,3363.2,3362.1,2.97431]
[1721051376102,0.62144972,3363.0,3362.1,2.97431]
[1721051376304,0.62144972,3363.0,3362.4,2.97406]
[1721051376727,2.97345,3363.1,3362.4,2.97406]
[1721051376728,0.62144972,3362.9,3362.4,2.97406]
[1721051377236,0.62144972,3362.9,3362.5,3.0]
[1721051377449,3.59489972,3363.1,3362.5,3.0]
[1721051377638,0.62160817,3363.0,3362.5,3.0]
[1721051377815,0.62160817,3362.9,3362.5,3.0]
[1721051378658,0.62160817,3362.7,3362.0,2.97436]
[1721051378819,2.97393,3362.6,3361.7,2.97462]
[1721051379026,3.59553817,3362.6,3361.7,2.97462]
[1721051379243,3.59553817,3362.6,3361.8,2.97451]
[1721051379445,0.62160817,3362.5,3361.8,2.97451]
[1721051379808,0.62160817,3362.4,3361.7,2.97461]
[1721051380005,3.59562817,3362.5,3361.9,2.9745]
[1721051380257,0.93241226,3362.7,3361.9,2.9745]
[1721051380258,0.62160817,3362.7,3361.9,2.9745]
[1721051380786,0.62168074,3362.7,3362.3,2.97413]
[1721051381661,0.62168074,3362.6,3362.3,2.97413]
[1721051382350,0.62168074,3362.9,3362.3,2.97413]
[1721051382584,0.62168074,3362.9,3362.5,2.97397]
[1721051382782,6.69513149,3363.3,3362.6,2.97388]
[1721051382783,0.62161277,3363.0,3362.6,2.97388]
[1721051384229,0.62161277,3363.0,3362.8,2.97369]
[1721051384561,0.93241915,3363.1,3362.8,2.97369]
[1721051384562,0.62161277,3363.1,3362.8,2.97369]
[1721051384732,0.62161277,3363.0,3362.8,2.97369]
[1721051385135,0.62161277,3363.1,3362.8,2.97369]
[1721051385363,0.62161277,3363.0,3362.8,2.97369]
[1721051386439,0.62161277,3362.9,3362.8,2.97369]
[1721051386869,0.62161277,3363.0,3362.8,2.97369]
[1721051387875,0.93241915,3363.0,3362.8,2.97369]
[1721051388888,0.62211755,3362.9,3362.8,2.97369]
[1721051389186,0.93241915,3363.0,3362.8,2.97369]
[1721051389533,0.62216144,3362.9,3362.8,2.97369]
[1721051389785,0.62214627,3362.9,3362.8,2.97369]
[1721051389984,0.93241915,3363.0,3362.7,2.97378]
[1721051390138,0.93241915,3362.9,3362.7,2.97378]
[1721051390339,1.24322554,3363.1,3362.5,2.97397]
[1721051390340,0.62216711,3362.8,3362.5,2.97397]
[1721051390547,0.62219663,3362.7,3362.6,2.97385]
[1721051391253,0.62219663,3362.8,3362.7,2.9738]
[1721051393824,1.24322554,3363.1,3362.5,2.97397]
[1721051393825,0.62219663,3362.9,3362.8,2.97371]
[1721051394545,0.62219663,3362.9,3362.5,2.97393]
[1721051394546,0.62219663,3362.9,3362.6,2.97383]
[1721051394823,0.62212991,3362.7,3362.6,2.97383]
[1721051395132,0.93241915,3362.9,3362.7,2.9738]
[1721051395133,0.62212991,3362.8,3362.7,2.9738]
[1721051395631,0.62212991,3362.9,3362.8,2.97371]
[1721051395834,0.62219326,3362.9,3362.8,2.97371]
[1721051396142,0.62219326,3362.9,3362.4,2.974]
[1721051396282,0.62219326,3362.6,3362.4,2.97398]
[1721051396488,0.62219326,3362.6,3362.5,2.97397]
[1721051396688,0.93359221,3362.6,3362.5,2.97397]
[1721051396947,0.93359221,3362.6,3362.0,2.97433]
[1721051397148,0.62243315,3362.3,3362.1,3.0]
[1721051397318,0.62243315,3362.2,3362.1,3.0]
[1721051397506,0.62243315,3362.3,3362.0,3.0]
[1721051397935,0.62243315,3362.3,3362.2,2.97424]
[1721051398256,0.93364973,3362.5,3362.2,2.97424]
[1721051398257,0.62243315,3362.5,3362.3,2.97415]
[1721051398407,0.62243315,3362.5,3362.2,2.97424]
[1721051398607,0.62243315,3362.4,3362.2,2.97424]
[1721051398973,0.62243315,3362.3,3362.0,3.0]
[1721051399254,0.62263173,3362.2,3362.0,2.97441]
[1721051399423,0.62263173,3362.2,3362.1,3.0]
[1721051399749,2.9738,3362.7,3362.1,3.0]
[1721051399950,0.62263916,3362.2,3362.1,3.0]
[1721051400257,0.62263916,3362.3,3362.1,5.97432]
[1721051400417,0.62263916,3362.4,3362.3,2.97415]
[1721051400954,0.93395874,3362.5,3362.3,2.97415]
[1721051401248,0.93395874,3362.5,3362.0,2.97441]
[1721051401249,1.30754137,3362.5,3362.0,2.97441]
[1721051401571,0.62258687,3362.2,3362.0,2.97441]
[1721051401710,0.93395874,3362.2,3361.8,2.97454]
[1721051401911,0.62260114,3362.0,3361.6,2.9747]
[1721051402142,0.62260114,3362.0,3361.5,2.97483]
[1721051402722,0.62260114,3361.9,3361.7,2.97462]
[1721051402955,0.62260114,3362.1,3361.7,2.97462]
[1721051403138,0.62260114,3362.0,3361.7,2.97462]
[1721051403850,0.62260114,3361.9,3361.7,2.97462]
[1721051404554,0.62260114,3362.1,3361.8,2.97459]
[1721051404718,0.62260114,3362.1,3362.0,2.97441]
[1721051404919,0.93395874,3362.2,3362.1,2.97433]
[1721051404920,0.62260114,3362.2,3362.1,2.97433]
[1721051405214,0.62222518,3362.6,3362.4,2.97398]
[1721051405424,0.62222518,3362.5,3362.4,2.97398]
[1721051405845,0.62222518,3362.6,3362.5,2.97397]
[1721051406050,0.62222518,3362.9,3362.8,2.97371]
[1721051406264,0.62222518,3363.1,3362.8,2.97371]
[1721051406565,0.62222518,3363.2,3363.0,2.97353]
[1721051406868,0.93333777,3363.1,3362.8,2.97371]
[1721051407152,0.93333777,3363.1,3362.3,2.97411]
[1721051407153,0.62214873,3362.9,3362.7,2.97378]
[1721051407358,0.62214873,3363.0,3362.9,2.97362]
[1721051407742,0.62214873,3363.1,3363.0,2.97353]
[1721051407931,0.62214873,3363.2,3363.0,2.97353]
[1721051408465,0.93352239,3363.2,3363.0,2.97353]
[1721051408827,8.95587066,3363.5,3363.0,2.97353]
[1721051408828,0.62239682,3363.1,3363.0,2.97353]
[1721051409517,0.62239682,3363.1,3363.0,5.94706]
[1721051409721,0.62239682,3363.3,3363.2,2.97335]
[1721051410264,0.93352239,3363.5,3363.2,2.97335]
[1721051410445,0.62254745,3363.3,3363.2,2.97335]